bitfinex-derivatives/quotes_SOLF0:USTF0_20250125
["timestamp","ask_amount","ask_price","bid_price","bid_amount"]
[1737815453576,6.35969843,251.19,251.13,0.02722983]
[1737815453781,3.9827,251.12,251.1,6.35969843]
[1737815453975,6.35969843,251.19,251.1,6.35969843]
[1737815454172,6.35969843,251.19,251.12,6.35969843]
[1737815454983,0.02722983,251.18,251.13,0.02786351]
[1737815455181,3.9824,251.14,251.13,0.02786351]
[1737815455881,0.02722983,251.18,251.13,0.02786351]
[1737815456283,6.44328813,251.17,251.13,0.02786351]
[1737815456485,6.44328813,251.16,251.13,0.02786351]
[1737815456681,6.44328813,251.15,251.13,0.02786351]
[1737815456881,6.44328813,251.14,251.13,0.02786351]
[1737815457180,17.17231382,251.14,251.1,0.82483562]
[1737815457381,9.43044193,251.13,251.1,0.82483562]
[1737815457577,7.74187189,251.12,251.11,3.9828]
[1737815458582,0.02683024,251.14,251.09,4.00899961]
[1737815458783,0.02683024,251.14,251.13,6.35969843]
[1737815458977,10.53887984,251.14,251.11,6.35969843]
[1737815459179,15.78553532,251.13,251.03,6.35969843]
[1737815459384,9.42583689,251.12,251.03,6.35969843]
[1737815459586,9.42583689,251.11,251.03,6.35969843]
[1737815459785,9.42583689,251.1,251.03,6.35969843]
[1737815460084,3.9837,251.06,251.03,6.35969843]
[1737815460284,3.9837,251.06,251.04,0.0254099]
[1737815462185,10.51964364,251.05,251.04,0.0254099]
[1737815462581,7.53214837,251.05,251.04,0.0254099]
[1737815462983,10.5196607,251.05,251.04,0.0254099]
[1737815463484,7.53214837,251.05,251.04,0.0254099]
[1737815463688,10.51966243,251.05,251.04,0.0254099]
[1737815464083,7.53214837,251.05,251.04,0.0254099]
[1737815464786,0.02990936,251.07,251.04,0.0254099]
[1737815464988,3.9836,251.06,251.04,0.0254099]
[1737815465188,3.49,251.06,251.04,0.0254099]
[1737815465389,3.49,251.06,251.05,6.35969843]
[1737815466886,3.49,251.06,251.04,0.0254099]
[1737815467193,9.84969843,251.06,251.04,0.0254099]
[1737815467689,9.84969843,251.06,250.97,6.35969843]
[1737815468486,6.35969843,251.04,250.95,6.35969843]
[1737815468891,4.00989619,251.02,250.97,0.02720758]
[1737815469191,5.83559619,251.02,250.97,0.02720758]
[1737815469393,3.9845,251.01,250.97,0.02720758]
[1737815469690,5.83559619,251.02,250.97,0.02720758]
[1737815469989,12.19529462,251.02,250.97,0.02720758]
[1737815470188,3.9845,251.01,250.97,0.02720758]
[1737815470491,12.19529462,251.02,250.97,0.02720758]
[1737815471894,3.9845,251.01,250.97,0.02720758]
[1737815472193,12.19529462,251.02,250.97,0.02720758]
[1737815472993,3.9847,251.0,250.97,0.02720758]
[1737815473193,12.19529462,251.02,250.97,0.02720758]
[1737815473794,3.9844,251.01,250.97,0.02720758]
[1737815474394,3.9846,251.0,250.97,0.02720758]
[1737815474596,6.35969843,251.0,250.97,0.02720758]
[1737815476093,3.9849,250.98,250.97,0.02720758]
[1737815476398,11.54969843,250.98,250.87,6.35969843]
[1737815476697,6.35969843,250.94,250.87,6.35969843]
[1737815476894,2.5163,250.97,250.91,6.35969843]
[1737815477396,1.28055369,250.97,250.91,6.3853634]
[1737815478099,0.02535369,250.97,250.93,3.9856]
[1737815478595,0.02535369,250.97,250.91,6.3853634]
[1737815479000,0.02535369,250.97,250.95,6.35969843]
[1737815479897,0.02535369,250.97,250.93,6.35969843]
[1737815480291,0.02535369,250.97,250.93,10.34539843]
[1737815480495,0.02535369,250.97,250.93,6.35969843]
[1737815480693,0.02535369,250.97,250.91,6.3853634]
[1737815483104,4.01045369,250.97,250.91,10.3712634]
[1737815483302,0.02535369,250.97,250.91,10.3712634]
[1737815483808,0.02535369,250.97,250.91,6.3853634]
[1737815484006,0.02535369,250.97,250.95,3.9853]
[1737815484202,0.02535369,250.97,250.95,6.35969843]
[1737815484505,5.55535369,250.97,250.94,3.9854]
[1737815484706,5.55535369,250.97,250.93,6.35969843]
[1737815485104,5.55535369,250.97,250.93,10.34529843]
[1737815485407,11.17535369,250.97,250.93,10.34529843]
[1737815485811,15.16045369,250.97,250.91,10.3712634]
[1737815486109,11.17535369,250.97,250.91,10.3712634]
[1737815486303,11.17535369,250.97,250.91,6.3853634]
[1737815486508,11.17535369,250.97,250.92,3.9858]
[1737815487607,15.16045369,250.97,250.91,6.3853634]
[1737815487805,11.17535369,250.97,250.91,6.3853634]
[1737815488709,15.16055369,250.97,250.91,6.3853634]
[1737815490114,15.16055369,250.97,250.91,10.3713634]
[1737815490314,15.16055369,250.97,250.91,6.3853634]
[1737815491113,15.16055369,250.97,250.92,3.9858]
[1737815491513,15.16055369,250.97,250.91,6.3853634]
[1737815491712,3.9855,250.94,250.91,0.02566497]
[1737815491914,11.17535369,250.97,250.91,6.3853634]
[1737815492311,15.16035369,250.97,250.92,3.9858]
[1737815492606,11.17535369,250.97,250.91,6.3853634]
[1737815492807,11.17535369,250.97,250.95,3.9853]
[1737815494223,11.17535369,250.97,250.93,6.35969843]
[1737815494426,11.17535369,250.97,250.93,10.34519843]
[1737815495525,15.21535369,250.97,250.93,10.34519843]
[1737815496026,15.21535369,250.97,250.93,6.35969843]
[1737815496227,15.21535369,250.97,250.95,6.35969843]
[1737815496925,15.21535369,250.97,250.96,3.9852]
[1737815497127,8.30309181,250.97,250.96,3.9852]
[1737815499221,8.30309181,250.97,250.95,6.35969843]
[1737815500828,8.30309181,250.97,250.95,10.34499843]
[1737815501029,8.30309181,250.97,250.95,6.35969843]
[1737815501427,8.30309181,250.97,250.95,10.34499843]
[1737815502425,8.30309181,250.97,250.95,6.35969843]
[1737815502622,8.30309181,250.97,250.93,6.35969843]
[1737815502827,3.9852,250.96,250.93,6.35969843]
[1737815503126,3.9852,250.96,250.91,6.3853634]
[1737815503834,8.30309181,250.97,250.91,6.3853634]
[1737815505134,8.30309181,250.97,250.94,6.35969843]
[1737815505933,8.30309181,250.97,250.92,6.35969843]
[1737815506440,3.9856,250.94,250.91,0.02566497]
[1737815506634,8.30309181,250.97,250.91,0.02566497]
[1737815508235,3.9857,250.93,250.91,0.02566497]
[1737815509037,8.30309181,250.97,250.91,0.02566497]
[1737815509635,3.9855,250.94,250.91,0.02566497]
[1737815510738,3.9854,250.95,250.91,0.02566497]
[1737815510940,8.30309181,250.97,250.91,0.02566497]
[1737815512038,3.9854,250.95,250.91,0.02566497]
[1737815512434,0.85,250.98,250.92,6.35969843]
[1737815512636,0.85,250.98,250.94,10.34519843]
[1737815512840,0.85,250.98,250.96,6.35969843]
[1737815513639,4.3,250.98,250.96,6.35969843]
[1737815514043,4.3,250.98,250.96,10.34489843]
[1737815514639,4.3,250.98,250.96,6.35969843]
[1737815515242,4.3,250.98,250.96,10.34489843]
[1737815515742,9.77,250.98,250.96,10.34489843]
[1737815515944,9.77,250.98,250.96,6.35969843]
[1737815521851,3.985,250.97,250.92,6.35969843]
[1737815522050,8.92,250.98,250.92,6.35969843]
[1737815522852,3.9857,250.93,250.92,6.35969843]
[1737815523350,4.8457,250.93,250.92,6.35969843]
[1737815523750,0.86,250.93,250.92,6.35969843]
[1737815524153,8.92,250.98,250.94,3.9854]
[1737815524353,8.92,250.98,250.97,6.35969843]
[1737815527053,5.5898,250.98,250.97,6.35969843]
[1737815527249,5.5898,250.98,250.97,8.97969843]
[1737815528056,5.5898,250.98,250.97,12.96469843]
[1737815530263,0.02589916,250.99,250.97,12.96469843]
[1737815530459,0.02589916,250.99,250.98,2.5939]
[1737815530655,0.02589916,250.99,250.98,6.5788]
[1737815532265,3.9829,251.11,251.04,3.9839]
[1737815532457,3.9829,251.11,251.08,6.35969843]
[1737815533162,3.9829,251.11,251.06,6.35969843]
[1737815533361,3.9829,251.11,251.07,0.02785922]
[1737815533559,7.4429,251.11,251.07,0.02785922]
[1737815535569,3.9832,251.09,251.07,0.02785922]
[1737815536465,3.46,251.11,251.07,0.02785922]
[1737815536663,7.4429,251.11,251.07,0.02785922]
[1737815538662,3.46,251.11,251.07,0.02785922]
[1737815539666,7.4428,251.11,251.07,0.02785922]
[1737815540464,3.46,251.11,251.07,0.02785922]
[1737815540662,3.46,251.11,251.08,6.35969843]
[1737815540867,3.9811,251.22,251.14,3.9822]
[1737815541064,8.98969843,251.24,251.17,6.35969843]
[1737815541467,3.9813,251.21,251.17,6.35969843]
[1737815541768,8.98969843,251.24,251.17,6.35969843]
[1737815542066,0.02842225,251.23,251.18,0.0272138]
[1737815542462,3.9811,251.22,251.18,0.0272138]
[1737815542766,0.02842225,251.23,251.18,0.0272138]
[1737815542960,3.9813,251.21,251.18,0.0272138]
[1737815543162,0.02842225,251.23,251.18,0.0272138]
[1737815545067,3.9811,251.22,251.18,0.0272138]
[1737815545667,0.02842225,251.23,251.18,0.0272138]
[1737815546167,0.02842225,251.23,251.19,6.35969843]
[1737815546466,4.00942225,251.23,251.19,6.35969843]
[1737815547269,0.02842225,251.23,251.19,6.35969843]
[1737815548168,4.00932225,251.23,251.19,6.35969843]
[1737815548368,0.02842225,251.23,251.21,6.35969843]
[1737815548571,4.00932225,251.23,251.21,6.35969843]
[1737815548966,0.02842225,251.23,251.21,6.35969843]
[1737815549375,0.02842225,251.23,251.22,3.9811]
[1737815550369,5.46001,251.24,251.23,3.9809]
[1737815550569,5.46001,251.24,251.23,10.34059843]
[1737815551070,5.265,251.34,251.23,6.35969843]
[1737815551266,1.2857,251.34,251.3,6.35969843]
[1737815552173,4.29,251.34,251.3,6.35969843]
[1737815552971,4.29,251.34,251.32,6.35969843]
[1737815553973,4.29,251.34,251.29,0.02553562]
[1737815554674,3.9797,251.31,251.29,0.02553562]
[1737815555169,10.64969843,251.34,251.26,6.35969843]
[1737815555370,3.9802,251.28,251.24,6.35969843]
[1737815555976,10.64969843,251.34,251.26,6.35969843]
[1737815556274,4.29,251.34,251.3,6.35969843]
[1737815556475,0.02606119,251.33,251.3,6.35969843]
[1737815556973,3.9795,251.32,251.3,6.35969843]
[1737815557775,0.02606119,251.33,251.3,6.35969843]
[1737815557976,0.02606119,251.33,251.32,6.35969843]
[1737815561680,0.02606119,251.33,251.27,9.90508527]
[1737815562079,4.00536119,251.33,251.27,9.90508527]
[1737815562681,0.02606119,251.33,251.27,9.90508527]
[1737815564082,3.9799,251.3,251.27,9.90508527]
[1737815564288,3.9799,251.3,251.27,0.02814201]
[1737815564577,3.9801,251.28,251.27,0.02814201]
[1737815565783,1.3632,251.32,251.18,9.87694326]
[1737815566092,1.3632,251.32,251.19,3.9815]
[1737815566389,3.9803,251.28,251.21,9.87694326]
[1737815566588,1.3632,251.32,251.21,13.85814326]
[1737815566887,0.02563665,251.29,251.24,0.02530526]
[1737815567588,3.9806,251.26,251.24,0.02530526]
[1737815567784,3.9806,251.26,251.25,10.13421328]
[1737815568488,0.02563665,251.29,251.25,10.13421328]
[1737815569191,0.02563665,251.29,251.26,6.23643894]
[1737815569391,0.02563665,251.29,251.26,10.13421328]
[1737815569890,3.9802,251.28,251.26,10.13421328]
[1737815570089,3.9802,251.28,251.27,10.13421328]
[1737815570392,3.9802,251.28,251.27,5.97191328]
[1737815572292,0.02563665,251.29,251.27,5.97191328]
[1737815572692,0.02563665,251.29,251.28,3.89777434]
[1737815573892,0.02563665,251.29,251.28,7.87787434]
[1737815574293,0.02563665,251.29,251.28,3.89777434]
[1737815575188,0.02563665,251.29,251.28,7.87787434]
[1737815575399,0.02563665,251.29,251.28,17.7548176]
[1737815575695,4.29,251.34,251.3,3.9798]
[1737815575895,4.29,251.34,251.28,13.7747176]
[1737815576193,4.29,251.34,251.31,3.89777434]
[1737815576396,4.29,251.34,251.29,3.89777434]
[1737815576790,4.31960296,251.34,251.3,3.89777434]
[1737815576989,4.31960296,251.34,251.29,0.02557327]
[1737815577185,3.9796,251.32,251.29,0.02557327]
[1737815577386,3.9796,251.32,251.31,3.90681568]
[1737815577790,0.02960296,251.34,251.31,3.90681568]
[1737815578293,0.02960296,251.34,251.29,0.02557327]
[1737815578294,0.02960296,251.34,251.32,3.90681568]
[1737815579094,3.9794,251.33,251.32,3.90681568]
[1737815579297,0.02960296,251.34,251.29,0.02557327]
[1737815580091,3.9798,251.31,251.3,3.81126187]
[1737815580692,8.7698,251.31,251.3,3.81126187]
[1737815581097,4.79,251.31,251.3,9.9137561]
[1737815583897,3.9793,251.34,251.3,9.9137561]
[1737815584595,3.9793,251.34,251.31,9.9137561]
[1737815584796,6.32257749,251.38,251.31,9.9137561]
[1737815584993,3.9794,251.33,251.31,9.9137561]
[1737815585299,8.7294,251.33,251.32,3.81126187]
[1737815586701,4.75,251.33,251.32,3.81126187]
[1737815587500,8.7294,251.33,251.32,3.81126187]
[1737815587900,3.981,251.23,251.21,11.68934293]
[1737815588105,6.32257749,251.26,251.21,11.68934293]
[1737815588305,6.32257749,251.28,251.21,11.68934293]
[1737815588500,6.32257749,251.28,251.2,6.32257749]
[1737815588699,6.32257749,251.26,251.18,18.01192042]
[1737815589004,6.32257749,251.28,251.2,6.32257749]
[1737815589200,0.0257354,251.25,251.2,10.30387749]
[1737815589702,0.0257354,251.25,251.2,3.9813]
[1737815590300,0.0257354,251.25,251.21,3.9812]
[1737815590503,0.0257354,251.25,251.19,0.0303348]
[1737815591105,0.0257354,251.25,251.21,9.88498397]
[1737815591301,0.0257354,251.25,251.24,3.9808]
[1737815591501,0.0257354,251.25,251.21,9.88498397]
[1737815592006,0.0257354,251.25,251.24,3.9808]
[1737815593501,0.0257354,251.25,251.22,11.68934293]
[1737815593805,0.0257354,251.25,251.23,11.68934293]
[1737815594405,0.0257354,251.25,251.22,11.68934293]
[1737815594606,0.0257354,251.25,251.23,3.9809]
[1737815594805,0.0257354,251.25,251.22,11.68934293]
[1737815595007,0.0257354,251.25,251.2,11.68934293]
[1737815595706,0.0257354,251.25,251.2,15.67074293]
[1737815595909,0.0257354,251.25,251.2,3.9814]
[1737815596907,0.0257354,251.25,251.19,11.71967773]
[1737815597211,0.0257354,251.25,251.19,0.0303348]
[1737815598402,3.981,251.23,251.19,0.0303348]
[1737815598607,5.2457354,251.25,251.19,0.0303348]
[1737815599813,3.9809,251.24,251.19,0.0303348]
[1737815600114,5.2457354,251.25,251.19,0.0303348]
[1737815600611,5.2457354,251.25,251.13,11.68934293]
[1737815600912,9.88498397,251.2,251.09,11.68934293]
[1737815601110,9.88498397,251.14,251.09,11.68934293]
[1737815601709,3.9833,251.09,251.07,165.3038748]
[1737815601910,9.91561101,251.14,251.09,0.0299224]
[1737815602104,3.9828,251.12,251.09,0.0299224]
[1737815602310,9.91561101,251.14,251.09,0.0299224]
[1737815602613,9.91561101,251.14,251.02,137.753229]
[1737815602804,3.9829,251.11,251.02,137.753229]
[1737815603116,9.91561101,251.14,251.02,137.753229]
[1737815603813,9.88498397,251.11,251.05,0.02528166]
[1737815604111,3.9837,251.06,251.05,0.02528166]
[1737815605109,4.01308732,251.08,251.05,0.02528166]
[1737815605309,0.02968732,251.08,251.05,0.02528166]
[1737815605711,3.9835,251.07,251.05,0.02528166]
[1737815606015,0.02968732,251.08,251.05,0.02528166]
[1737815607512,9.91467129,251.08,250.92,9.88498397]
[1737815607714,9.88498397,251.08,250.92,9.88498397]
[1737815608212,1.2974,251.09,250.95,9.88498397]
[1737815608614,0.02631334,251.05,250.99,0.02519279]
[1737815608914,0.02631334,251.05,251.01,3.9843]
[1737815609415,0.02631334,251.05,250.99,0.02519279]
[1737815610712,3.9846,251.01,250.99,0.02519279]
[1737815611717,3.9841,251.04,250.99,0.02519279]
[1737815611918,0.02631334,251.05,250.99,0.02519279]
[1737815612819,0.02631334,251.05,251.02,3.9842]
[1737815613418,0.02631334,251.05,251.03,3.9841]
[1737815613617,0.02631334,251.05,251.04,3.63558547]
[1737815618319,4.01011334,251.05,251.04,3.63558547]
[1737815619623,0.02631334,251.05,251.04,3.63558547]
[1737815619819,5.42631334,251.05,251.04,3.63558547]
[1737815620223,1.20681767,251.05,251.04,3.63558547]
[1737815620723,1.20681767,251.05,251.04,7.61958547]
[1737815621623,1.20681767,251.05,251.04,3.63558547]
[1737815623126,1.20681767,251.05,251.04,7.61958547]
[1737815625129,1.20681767,251.05,251.04,3.63558547]
[1737815627029,1.20681767,251.05,251.04,7.61958547]
[1737815630326,3.765e-05,251.07,251.06,3.9836]
[1737815630523,3.765e-05,251.07,251.06,13.86858397]
[1737815630718,3.9817,251.19,251.06,13.52056944]
[1737815630918,9.88498397,251.21,251.06,13.52056944]
[1737815631122,9.88498397,251.21,251.06,3.63558547]
[1737815631429,3.9819,251.17,251.09,3.9831]
[1737815631630,3.91,251.17,251.07,3.63558547]
[1737815631828,0.02826442,251.16,251.1,0.02866842]
[1737815632230,4.01046442,251.16,251.1,0.02866842]
[1737815632430,0.02826442,251.16,251.1,0.02866842]
[1737815632627,0.02826442,251.16,251.11,3.63558547]
[1737815632828,3.9824,251.14,251.11,3.63558547]
[1737815633331,3.9824,251.14,251.12,3.63558547]
[1737815633932,3.9825,251.13,251.1,0.02866842]
[1737815634426,9.88498397,251.14,251.11,3.63796572]
[1737815634833,3.9827,251.12,251.11,3.63796572]
[1737815636134,3.9829,251.11,251.1,0.02866842]
[1737815637535,9.88498397,251.14,251.1,0.02866842]
[1737815637735,1.40756442,251.16,251.1,0.02866842]
[1737815637736,3.9827,251.13,251.1,0.02866842]
[1737815638036,1.40756442,251.16,251.1,0.02866842]
[1737815638426,3.9823,251.15,251.1,0.02866842]
[1737815638627,1.40756442,251.16,251.1,0.02866842]
[1737815641333,9.88498397,251.14,250.98,9.88498397]
[1737815642337,3.9826,251.13,251.06,3.9835]
[1737815642640,0.02651952,251.09,251.03,9.9154555]
[1737815643139,0.02651952,251.09,251.04,3.9838]
[1737815643330,0.02651952,251.09,251.03,9.9154555]
[1737815643530,0.02651952,251.09,251.06,9.88498397]
[1737815643939,3.91,251.17,251.06,9.88498397]
[1737815644131,3.91,251.17,251.09,9.88498397]
[1737815644537,3.91,251.17,251.12,9.88498397]
[1737815644957,3.91,251.17,251.13,3.9825]
[1737815645240,3.93613887,251.17,251.13,3.9825]
[1737815646545,3.93613887,251.17,251.12,9.91128211]
[1737815646842,0.29807315,251.17,251.15,13.86708397]
[1737815649545,0.29807315,251.17,251.15,3.9821]
[1737815650846,0.29807315,251.17,251.14,3.9823]
[1737815651340,0.29807315,251.17,251.12,13.89388211]
[1737815651643,0.29807315,251.17,251.12,4.00889814]
[1737815652145,0.29807315,251.17,251.13,3.9825]
[1737815652336,0.29807315,251.17,251.12,9.91128211]
[1737815652736,0.29807315,251.17,251.15,3.9821]
[1737815653244,0.29807315,251.17,251.15,13.86708397]
[1737815653846,7.315e-05,251.17,251.15,9.88498397]
[1737815654046,7.315e-05,251.17,251.16,3.9821]
[1737815656250,7.315e-05,251.17,251.16,5.3519]
[1737815661448,7.315e-05,251.17,251.16,3.9821]
[1737815661850,7.315e-05,251.17,251.15,3.9822]
[1737815662148,7.315e-05,251.17,251.12,0.02629814]
[1737815662750,7.315e-05,251.17,251.16,3.9821]
[1737815666053,7.315e-05,251.17,251.14,13.86728397]
[1737815666253,7.315e-05,251.17,251.12,0.02629814]
[1737815666854,7.315e-05,251.17,251.14,3.9823]
[1737815667049,7.315e-05,251.17,251.12,0.02629814]
[1737815667751,7.315e-05,251.17,251.13,6.33032]
[1737815668056,7.315e-05,251.17,251.13,10.31282]
[1737815668453,7.315e-05,251.17,251.12,0.02629814]
[1737815669154,3.98197315,251.17,251.12,0.02629814]
[1737815669458,7.315e-05,251.17,251.12,0.02629814]
[1737815670456,7.315e-05,251.17,251.13,6.33032]
[1737815671056,7.315e-05,251.17,251.13,10.31282]
[1737815671854,7.315e-05,251.17,251.13,6.33032]
[1737815672054,7.315e-05,251.17,251.14,3.9824]
[1737815673456,7.315e-05,251.17,251.13,6.33032]
[1737815674258,7.315e-05,251.17,251.15,6.33032]
[1737815676959,7.315e-05,251.17,251.16,3.9821]
[1737815677657,7.315e-05,251.17,251.15,6.33032]
[1737815677857,7.315e-05,251.17,251.12,0.02629814]
[1737815677858,7.315e-05,251.17,251.13,6.33032]
[1737815678960,3.9821,251.16,251.12,0.02629814]
[1737815679357,6.33032,251.13,251.05,6.33032]
[1737815679554,3.983,251.11,251.05,6.33032]
[1737815679757,6.33032,251.13,251.05,6.33032]
[1737815680454,6.33032,251.13,251.07,6.33032]
[1737815680656,0.0285823,251.12,251.07,6.33032]
[1737815681667,0.0285823,251.12,251.07,10.31372]
[1737815681963,0.0285823,251.12,251.09,6.33032]
[1737815682268,0.0285823,251.12,251.09,10.31352]
[1737815682866,0.0285823,251.12,251.09,6.33032]
[1737815683365,0.0285823,251.12,251.06,0.02656361]
[1737815683965,0.0285823,251.12,251.07,6.33032]
[1737815685069,0.0285823,251.12,251.07,10.31362]
[1737815685371,0.0285823,251.12,251.07,6.33032]
[1737815686064,0.0285823,251.12,251.07,10.31382]
[1737815686767,0.0285823,251.12,251.07,6.33032]
[1737815688771,0.0285823,251.12,251.07,10.31372]
[1737815690774,0.0285823,251.12,251.09,6.33032]
[1737815690974,0.0285823,251.12,251.11,6.33032]
[1737815691673,0.0285823,251.12,251.11,10.31322]
[1737815693775,0.0285823,251.12,251.11,6.33032]
[1737815693976,0.0285823,251.12,251.11,10.31322]
[1737815698478,0.0285823,251.12,251.11,6.33032]
[1737815699278,0.0285823,251.12,251.11,10.31322]
[1737815699478,0.0285823,251.12,251.11,6.33032]
[1737815700079,0.0285823,251.12,251.11,10.31322]
[1737815700584,0.0285823,251.12,251.09,6.33032]
[1737815701878,0.0285823,251.12,251.11,6.33032]
[1737815702889,0.0285823,251.12,251.11,10.31322]
[1737815704282,0.0285823,251.12,251.11,6.33032]
[1737815705688,0.0285823,251.12,251.09,6.33032]
[1737815706587,0.0285823,251.12,251.11,6.33032]
[1737815708890,0.0285823,251.12,251.11,10.31322]
[1737815712092,6.33032,251.24,251.11,6.33032]
[1737815712290,6.33032,251.24,251.17,6.33032]
[1737815712694,3.9813,251.21,251.17,6.33032]
[1737815712889,6.33032,251.24,251.17,6.33032]
[1737815713392,1.3551,251.26,251.05,2.64]
[1737815713393,0.02851873,251.23,251.21,6.33032]
[1737815713592,6.33032,251.28,251.19,6.33032]
[1737815713788,4.00907984,251.25,251.19,10.33979144]
[1737815714092,0.02837984,251.25,251.19,6.35829144]
[1737815714394,0.02837984,251.25,251.2,3.9814]
[1737815715891,3.9814,251.21,251.19,0.02797144]
[1737815716091,6.33032,251.2,251.19,0.02797144]
[1737815716292,6.33032,251.2,251.1,6.33032]
[1737815716492,6.33032,251.17,251.1,6.33032]
[1737815716796,6.33032,251.15,251.08,137.753229]
[1737815717296,3.9828,251.12,251.08,137.753229]
[1737815717496,3.9828,251.12,251.09,0.02953897]
[1737815717693,6.33032,251.13,251.09,0.02953897]
[1737815717897,3.983,251.1,251.09,0.02953897]
[1737815719399,6.33032,251.05,251.01,137.753229]
[1737815719790,6.33032,251.07,251.01,137.753229]
[1737815719991,6.33032,251.07,251.0,6.33032]
[1737815720504,0.02791363,251.06,251.01,0.02779462]
[1737815722201,3.9839,251.05,251.01,0.02779462]
[1737815722396,6.33032,251.03,251.01,0.02779462]
[1737815722601,3.9849,250.99,250.95,137.753229]
[1737815722898,3.9849,250.99,250.94,16.80069163]
[1737815722899,6.33032,251.01,250.94,10.47037163]
[1737815723101,6.33032,251.01,250.92,6.33032]
[1737815723501,3.9844,251.02,250.96,6.33032]
[1737815723702,0.02602852,250.99,250.96,6.33032]
[1737815724603,0.02602852,250.99,250.94,6.35756988]
[1737815725004,3.985,250.98,250.94,0.02724988]
[1737815726904,0.02602852,250.99,250.94,4.01274988]
[1737815727105,0.02602852,250.99,250.94,0.02724988]
[1737815727502,3.9854,250.96,250.94,0.02724988]
[1737815728807,0.02602852,250.99,250.94,6.35756988]
[1737815729108,0.02602852,250.99,250.96,6.33032]
[1737815729505,0.02602852,250.99,250.94,6.35756988]
[1737815729998,0.02602852,250.99,250.96,10.31552]
[1737815730199,0.02602852,250.99,250.98,6.33032]
[1737815733908,6.33032,251.16,251.06,3.9836]
[1737815734105,6.33032,251.16,251.08,6.33032]
[1737815734307,3.9824,251.14,251.08,6.33032]
[1737815734606,6.33032,251.14,251.06,6.33032]
[1737815735108,0.02819483,251.13,251.07,0.02568925]
[1737815735307,4.01079483,251.13,251.07,0.02568925]
[1737815736906,0.02819483,251.13,251.08,3.9832]
[1737815737209,0.02819483,251.13,251.07,0.02568925]
[1737815738207,0.02819483,251.13,251.08,3.9833]
[1737815738709,6.33032,251.1,251.07,0.02568925]
[1737815738904,7.58862,251.12,251.07,0.02568925]
[1737815739114,1.2583,251.12,251.09,3.9832]
[1737815739309,1.2583,251.12,251.07,0.02568925]
[1737815739701,7.58862,251.12,251.07,0.02568925]
[1737815740410,7.58862,251.12,251.08,3.9833]
[1737815740708,7.58862,251.12,251.07,0.02568925]
[1737815741414,6.33032,251.1,251.07,0.02568925]
[1737815742908,3.9832,251.09,251.07,0.02568925]
[1737815744511,3.9833,251.08,251.07,0.02568925]
[1737815746819,6.33032,251.1,251.07,0.02568925]
[1737815747119,3.9833,251.09,251.07,0.02568925]
[1737815747421,7.58862,251.12,251.07,0.02568925]
[1737815747623,3.983,251.11,251.07,0.02568925]
[1737815747818,0.02819483,251.13,251.07,0.02568925]
[1737815748220,4.01089483,251.13,251.07,0.02568925]
[1737815748722,4.01089483,251.13,251.07,4.00908925]
[1737815749024,0.02819483,251.13,251.08,6.33032]
[1737815749422,0.02819483,251.13,251.09,3.983]
[1737815750722,4.01079483,251.13,251.08,3.9833]
[1737815752720,3.9827,251.12,251.08,3.9833]
[1737815754222,3.9829,251.11,251.07,0.02568925]
[1737815754427,6.33032,251.12,251.07,0.02568925]
[1737815755729,3.9832,251.1,251.07,0.02568925]
[1737815755924,6.33032,251.12,251.07,0.02568925]
[1737815756123,6.33032,251.1,251.07,0.02568925]
[1737815757029,10.31362,251.08,251.07,0.02568925]
[1737815757226,10.31362,251.08,250.98,3.9848]
[1737815757227,6.33032,251.08,250.98,3.9848]
[1737815757523,6.33032,251.05,250.98,3.9848]
[1737815757831,3.9842,251.03,250.97,10.31542]
[1737815758327,4.01336137,251.03,250.97,10.34169696]
[1737815759130,3.9843,251.02,250.97,6.35659696]
[1737815760324,0.02916137,251.03,250.97,6.35659696]
[1737815760531,6.33032,251.01,250.97,0.02627696]
[1737815760732,6.33032,250.99,250.97,0.02627696]
[1737815761323,3.9849,250.99,250.97,0.02627696]
[1737815761631,6.33032,251.01,250.97,0.02627696]
[1737815762529,3.9848,250.99,250.97,0.02627696]
[1737815763231,4.01336137,251.03,250.98,6.33032]
[1737815764135,4.01336137,251.03,250.97,0.02627696]
[1737815765136,4.01336137,251.03,250.98,3.9849]
[1737815765337,3.9844,251.02,250.97,0.02627696]
[1737815765635,6.35948137,251.03,250.97,0.02627696]
[1737815767235,3.9845,251.01,250.97,0.02627696]
[1737815767438,6.33032,251.01,250.97,0.02627696]
[1737815767737,3.9849,250.98,250.97,0.02627696]
[1737815769132,6.33032,250.99,250.86,6.33032]
[1737815769335,6.33032,250.92,250.86,6.33032]
[1737815769535,3.9862,250.9,250.86,6.33032]
[1737815769737,6.33032,250.92,250.84,6.33032]